[Event "Late-Titled-Tuesday-Blitz-May-28-2024"]
[Site "Chess.com"]
[Date "2024.05.28"]
[Round "1"]
[White "VD_coach"]
[Black "Oleksandr_Bortnyk"]
[Result "0-1"]
[WhiteElo "2522"]
[BlackElo "3018"]
[TimeControl "180+1"]
[EndTime "14:08:19 PDT"]
[Termination "Oleksandr_Bortnyk won by resignation"]

1. d4 {[%clk 0:03:00.9]} 1... g6 {[%clk 0:02:57.9]} 2. Nf3 {[%clk 0:03:00.4]}
2... Bg7 {[%clk 0:02:58.4]} 3. c4 {[%clk 0:03:00.4]} 3... Nf6 {[%clk 0:02:56.3]}
4. g3 {[%clk 0:03:00.2]} 4... O-O {[%clk 0:02:56.1]} 5. Bg2 {[%clk 0:03:00.2]}
5... d6 {[%clk 0:02:57]} 6. O-O {[%clk 0:03:00]} 6... Bf5 {[%clk 0:02:57.7]} 7.
Nc3 {[%clk 0:02:59.2]} 7... Ne4 {[%clk 0:02:58.1]} 8. Nxe4 {[%clk 0:02:59.2]}
8... Bxe4 {[%clk 0:02:59]} 9. Be3 {[%clk 0:02:58.8]} 9... Nc6 {[%clk 0:02:55.4]}
10. Qd2 {[%clk 0:02:58.4]} 10... d5 {[%clk 0:02:55.2]} 11. c5 {[%clk 0:02:33.2]}
11... a5 {[%clk 0:02:51.5]} 12. a3 {[%clk 0:02:23.6]} 12... a4 {[%clk
0:02:51.9]} 13. Rac1 {[%clk 0:02:23.2]} 13... Na5 {[%clk 0:02:52]} 14. Qc3
{[%clk 0:02:19]} 14... Nb3 {[%clk 0:02:51.2]} 15. Rcd1 {[%clk 0:02:18.7]} 15...
c6 {[%clk 0:02:51.8]} 16. Bf4 {[%clk 0:02:14]} 16... Qa5 {[%clk 0:02:46.1]} 17.
Ne5 {[%clk 0:02:09]} 17... Bxg2 {[%clk 0:02:40.8]} 18. Kxg2 {[%clk 0:02:07.5]}
18... Qxc3 {[%clk 0:02:40.8]} 19. bxc3 {[%clk 0:02:07.1]} 19... Bxe5 {[%clk
0:02:29.8]} 20. Bxe5 {[%clk 0:02:06.4]} 20... f6 {[%clk 0:02:29.9]} 21. Bc7
{[%clk 0:02:05.6]} 21... Rac8 {[%clk 0:02:16.9]} 22. Bb6 {[%clk 0:02:04.2]}
22... Rfe8 {[%clk 0:02:17.5]} 23. e3 {[%clk 0:01:55.3]} 23... e5 {[%clk
0:02:17.8]} 24. Rfe1 {[%clk 0:01:52]} 24... Kf7 {[%clk 0:02:15.3]} 25. Re2
{[%clk 0:01:43.7]} 25... Re7 {[%clk 0:02:14]} 26. Rb2 {[%clk 0:01:43]} 26...
Rce8 {[%clk 0:02:12.8]} 27. h4 {[%clk 0:01:36.2]} 27... h5 {[%clk 0:02:12]} 28.
Rh1 {[%clk 0:01:33.2]} 28... exd4 {[%clk 0:02:10.7]} 29. cxd4 {[%clk 0:01:33]}
29... Kg7 {[%clk 0:02:06.7]} 30. Rh2 {[%clk 0:01:32.9]} 30... Kh6 {[%clk
0:02:01.5]} 31. Rh1 {[%clk 0:01:33]} 31... Rd7 {[%clk 0:02:00.4]} 32. Rh2 {[%clk
0:01:32.6]} 32... Re4 {[%clk 0:02:00.4]} 33. Rh1 {[%clk 0:01:30.6]} 33... g5
{[%clk 0:02:00.8]} 34. hxg5+ {[%clk 0:01:30.3]} 34... fxg5 {[%clk 0:02:01.7]}
35. Rh2 {[%clk 0:01:30.6]} 35... Kg6 {[%clk 0:02:00.5]} 36. Rh1 {[%clk
0:01:27.5]} 36... Rf7 {[%clk 0:01:59.8]} 37. Rhb1 {[%clk 0:01:25.3]} 37... h4
{[%clk 0:01:57.9]} 38. Rh1 {[%clk 0:01:18.6]} 38... Rg4 {[%clk 0:01:38.3]} 39.
Rh3 {[%clk 0:01:07.2]} 39... Nc1 {[%clk 0:01:33.1]} 40. f3 {[%clk 0:01:03.7]}
40... Rxg3+ {[%clk 0:01:30.7]} 41. Rxg3 {[%clk 0:01:04.6]} 41... hxg3 {[%clk
0:01:31.5]} 42. Kxg3 {[%clk 0:00:57.1]} 42... Re7 {[%clk 0:01:30.5]} 43. Rc2
{[%clk 0:00:50.5]} 43... Nd3 {[%clk 0:01:30.2]} 44. Re2 {[%clk 0:00:49.8]} 44...
Nf4 {[%clk 0:01:21.3]} 45. Re1 {[%clk 0:00:49]} 45... Nd3 {[%clk 0:01:22]} 46.
Re2 {[%clk 0:00:49.2]} 46... Kf5 {[%clk 0:01:20.6]} 47. Bd8 {[%clk 0:00:45.6]}
47... Re6 {[%clk 0:01:16.5]} 48. Bc7 {[%clk 0:00:38.2]} 48... Nc1 {[%clk
0:01:16]} 49. Rc2 {[%clk 0:00:36.9]} 49... Nb3 {[%clk 0:01:13.6]} 50. Be5 {[%clk
0:00:35.3]} 50... Rh6 {[%clk 0:01:12.3]} 51. Re2 {[%clk 0:00:31]} 51... Nxc5
{[%clk 0:01:07.2]} 52. Rb2 {[%clk 0:00:21.6]} 52... Nb3 {[%clk 0:01:03.1]} 53.
Re2 {[%clk 0:00:22]} 53... c5 {[%clk 0:01:00.9]} 54. e4+ {[%clk 0:00:21.6]}
54... dxe4 {[%clk 0:01:01.8]} 55. fxe4+ {[%clk 0:00:22.2]} 55... Ke6 {[%clk
0:01:02.2]} 56. Bg7 {[%clk 0:00:21.2]} 56... Nxd4 {[%clk 0:01:00.8]} 57. Bxh6
{[%clk 0:00:17.8]} 57... Nxe2+ {[%clk 0:01:00.8]} 58. Kf3 {[%clk 0:00:11.1]}
58... Nd4+ {[%clk 0:00:59.5]} 59. Ke3 {[%clk 0:00:11.7]} 59... Nc2+ {[%clk
0:00:50.2]} 60. Kd3 {[%clk 0:00:11.7]} 60... Nxa3 {[%clk 0:00:51.1]} 61. Bxg5
{[%clk 0:00:11.8]} 61... b5 {[%clk 0:00:48]} 62. Be3 {[%clk 0:00:11.2]} 62...
Kd6 {[%clk 0:00:46.4]} 63. e5+ {[%clk 0:00:11.5]} 63... Kc6 {[%clk 0:00:42.7]}
64. e6 {[%clk 0:00:11.6]} 64... Nc4 {[%clk 0:00:40.5]} 65. Bf4 {[%clk
0:00:09.3]} 65... a3 {[%clk 0:00:32.8]} 66. e7 {[%clk 0:00:09]} 66... Kd7 {[%clk
0:00:33.7]} 67. Bh6 {[%clk 0:00:06.4]} 67... Kxe7 {[%clk 0:00:30.8]} 68. Bg7
{[%clk 0:00:06.6]} 68... Kd6 {[%clk 0:00:30.8]} 69. Kc3 {[%clk 0:00:06.1]} 69...
Kd5 {[%clk 0:00:31.2]} 70. Kb3 {[%clk 0:00:06.3]} 70... b4 {[%clk 0:00:31.8]}
71. Bf8 {[%clk 0:00:06.2]} 71... Na5+ {[%clk 0:00:31.1]} 72. Ka2 {[%clk
0:00:05.8]} 72... Kc4 {[%clk 0:00:30.3]} 73. Be7 {[%clk 0:00:05.3]} 73... Nc6
{[%clk 0:00:30.5]} 74. Bd6 {[%clk 0:00:05]} 74... Kb5 {[%clk 0:00:31]} 75. Bf8
{[%clk 0:00:05.1]} 75... c4 {[%clk 0:00:31.4]} 0-1

[Event "Late-Titled-Tuesday-Blitz-May-28-2024"]
[Site "Chess.com"]
[Date "2024.05.28"]
[Round "1"]
[White "stolencandy13"]
[Black "egnfanclub"]
[Result "1-0"]
[WhiteElo "2626"]
[BlackElo "2343"]
[TimeControl "180+1"]
[EndTime "14:08:20 PDT"]
[Termination "stolencandy13 won by resignation"]

1. d4 {[%clk 0:02:59.9]} 1... d5 {[%clk 0:02:55]} 2. Bf4 {[%clk 0:02:59.7]} 2...
Nf6 {[%clk 0:02:51.1]} 3. e3 {[%clk 0:02:57.5]} 3... Bf5 {[%clk 0:02:50.2]} 4.
c4 {[%clk 0:02:56.9]} 4... c6 {[%clk 0:02:49.9]} 5. Nc3 {[%clk 0:02:56.6]} 5...
e6 {[%clk 0:02:49.1]} 6. Qb3 {[%clk 0:02:56.4]} 6... b6 {[%clk 0:02:23.1]} 7.
Nf3 {[%clk 0:02:52.9]} 7... Nbd7 {[%clk 0:02:22.3]} 8. Be2 {[%clk 0:02:45]} 8...
Be7 {[%clk 0:02:21.1]} 9. h3 {[%clk 0:02:40.4]} 9... h6 {[%clk 0:02:20.1]} 10.
O-O {[%clk 0:02:40.4]} 10... O-O {[%clk 0:02:20.2]} 11. Rac1 {[%clk 0:02:40.8]}
11... Ne4 {[%clk 0:02:20.4]} 12. cxd5 {[%clk 0:02:32.3]} 12... cxd5 {[%clk
0:02:13.8]} 13. Ba6 {[%clk 0:02:28.3]} 13... Bd6 {[%clk 0:01:55]} 14. Ne5 {[%clk
0:02:05.4]} 14... Bxe5 {[%clk 0:01:50]} 15. Bxe5 {[%clk 0:01:57.6]} 15... Nxe5
{[%clk 0:01:49.5]} 16. dxe5 {[%clk 0:01:58.5]} 16... Nc5 {[%clk 0:01:49.7]} 17.
Qa3 {[%clk 0:01:56.5]} 17... Nxa6 {[%clk 0:01:46.7]} 18. Qxa6 {[%clk 0:01:55.9]}
18... Qc8 {[%clk 0:01:46.6]} 19. Qb5 {[%clk 0:01:41.3]} 19... Qb8 {[%clk
0:01:38.3]} 20. f4 {[%clk 0:01:37.8]} 20... a6 {[%clk 0:01:37.7]} 21. Qb4 {[%clk
0:01:29.4]} 21... b5 {[%clk 0:01:33.4]} 22. Rfd1 {[%clk 0:01:27.1]} 22... Rc8
{[%clk 0:01:32.2]} 23. Ne2 {[%clk 0:01:26.7]} 23... Rc4 {[%clk 0:01:28]} 24. Qd2
{[%clk 0:01:14.6]} 24... Qb6 {[%clk 0:01:13]} 25. Nd4 {[%clk 0:01:14]} 25... Be4
{[%clk 0:01:10.9]} 26. b3 {[%clk 0:01:14.2]} 26... Rcc8 {[%clk 0:01:05]} 27. Rc3
{[%clk 0:01:11]} 27... b4 {[%clk 0:00:59.3]} 28. Rcc1 {[%clk 0:01:09.6]} 28...
a5 {[%clk 0:00:58.5]} 29. Ne2 {[%clk 0:01:04.8]} 29... Qb7 {[%clk 0:00:42.1]}
30. Ng3 {[%clk 0:01:02.7]} 30... Bg6 {[%clk 0:00:39.3]} 31. Qd4 {[%clk
0:01:02.1]} 31... Rxc1 {[%clk 0:00:36.2]} 32. Rxc1 {[%clk 0:01:01.4]} 32... Rc8
{[%clk 0:00:37.1]} 33. Rc5 {[%clk 0:01:00.3]} 33... Bb1 {[%clk 0:00:32.1]} 34.
f5 {[%clk 0:00:53]} 34... exf5 {[%clk 0:00:28]} 35. Qxd5 {[%clk 0:00:44.5]}
35... Qxd5 {[%clk 0:00:27.8]} 36. Rxd5 {[%clk 0:00:44.7]} 36... Bxa2 {[%clk
0:00:28.1]} 37. Nxf5 {[%clk 0:00:42.8]} 37... Rc1+ {[%clk 0:00:26.4]} 38. Kf2
{[%clk 0:00:36.9]} 38... Bxb3 {[%clk 0:00:26.4]} 39. Rxa5 {[%clk 0:00:34.9]}
39... Rc2+ {[%clk 0:00:24.3]} 40. Kf3 {[%clk 0:00:33.4]} 40... Bc4 {[%clk
0:00:20.5]} 41. Ra8+ {[%clk 0:00:30.5]} 41... Kh7 {[%clk 0:00:20.1]} 42. Rb8
{[%clk 0:00:30.3]} 42... b3 {[%clk 0:00:20.3]} 43. Nd4 {[%clk 0:00:29.9]} 43...
Rb2 {[%clk 0:00:17.1]} 44. Rc8 {[%clk 0:00:23.9]} 44... Bf1 {[%clk 0:00:16.7]}
45. g4 {[%clk 0:00:20.5]} 45... Rh2 {[%clk 0:00:14]} 46. Nxb3 {[%clk 0:00:18]}
46... Rxh3+ {[%clk 0:00:13.9]} 47. Kf2 {[%clk 0:00:17.8]} 47... Bd3 {[%clk
0:00:13.2]} 48. Nd4 {[%clk 0:00:17.6]} 48... Be4 {[%clk 0:00:13]} 49. Rc7 {[%clk
0:00:16.8]} 49... Rh2+ {[%clk 0:00:13]} 50. Kg3 {[%clk 0:00:16.7]} 50... Rg2+
{[%clk 0:00:13.3]} 51. Kf4 {[%clk 0:00:16]} 51... Bd5 {[%clk 0:00:12.7]} 52. e6
{[%clk 0:00:16.4]} 52... fxe6 {[%clk 0:00:11.9]} 53. Re7 {[%clk 0:00:15.6]}
53... Rf2+ {[%clk 0:00:09.3]} 54. Ke5 {[%clk 0:00:14.4]} 54... Rf6 {[%clk
0:00:09.4]} 55. e4 {[%clk 0:00:13.8]} 55... Bc4 {[%clk 0:00:08.7]} 56. Nc6
{[%clk 0:00:12.3]} 56... Rg6 {[%clk 0:00:08.2]} 57. Kf4 {[%clk 0:00:12.2]} 57...
Be2 {[%clk 0:00:07.3]} 58. Ne5 {[%clk 0:00:12.1]} 58... Rf6+ {[%clk 0:00:07.6]}
59. Ke3 {[%clk 0:00:12.5]} 59... Bd1 {[%clk 0:00:05.9]} 60. Nd7 {[%clk
0:00:11.9]} 60... Rg6 {[%clk 0:00:05.2]} 61. Nf8+ {[%clk 0:00:12]} 61... Kg8
{[%clk 0:00:04.9]} 62. Nxg6 {[%clk 0:00:12.6]} 62... Bxg4 {[%clk 0:00:04.7]} 63.
Nf4 {[%clk 0:00:12.3]} 63... h5 {[%clk 0:00:04.3]} 64. Nxe6 {[%clk 0:00:12.2]}
1-0

[Event "Late-Titled-Tuesday-Blitz-May-28-2024"]
[Site "Chess.com"]
[Date "2024.05.28"]
[Round "1"]
[White "SaiHanThiha"]
[Black "baki83"]
[Result "0-1"]
[WhiteElo "2503"]
[BlackElo "2927"]
[TimeControl "180+1"]
[EndTime "14:08:27 PDT"]
[Termination "baki83 won by checkmate"]

1. Nf3 {[%clk 0:03:00.9]} 1... d5 {[%clk 0:02:16.7]} 2. g3 {[%clk 0:02:58]} 2...
Nf6 {[%clk 0:02:16.6]} 3. Bg2 {[%clk 0:02:57.7]} 3... g6 {[%clk 0:02:16.8]} 4.
b3 {[%clk 0:02:56.9]} 4... Bg7 {[%clk 0:02:16.9]} 5. Bb2 {[%clk 0:02:57.8]} 5...
O-O {[%clk 0:02:17]} 6. O-O {[%clk 0:02:58.3]} 6... c5 {[%clk 0:02:17.4]} 7. c4
{[%clk 0:02:57]} 7... d4 {[%clk 0:02:17.2]} 8. b4 {[%clk 0:02:57.1]} 8... Nc6
{[%clk 0:02:16.4]} 9. b5 {[%clk 0:02:56.3]} 9... Nb8 {[%clk 0:02:14.2]} 10. a4
{[%clk 0:02:55.2]} 10... Re8 {[%clk 0:02:12.4]} 11. d3 {[%clk 0:02:44.2]} 11...
e5 {[%clk 0:02:12]} 12. Nbd2 {[%clk 0:02:27.1]} 12... h6 {[%clk 0:02:07.7]} 13.
Re1 {[%clk 0:02:23.5]} 13... Nbd7 {[%clk 0:02:07.1]} 14. a5 {[%clk 0:02:20.7]}
14... g5 {[%clk 0:01:58.3]} 15. e3 {[%clk 0:02:11.9]} 15... Rb8 {[%clk
0:01:51.5]} 16. Nb3 {[%clk 0:01:44.5]} 16... b6 {[%clk 0:01:41.6]} 17. axb6
{[%clk 0:01:43.8]} 17... axb6 {[%clk 0:01:41.6]} 18. Ra7 {[%clk 0:01:44.2]}
18... Nf8 {[%clk 0:01:38.7]} 19. exd4 {[%clk 0:01:42.2]} 19... exd4 {[%clk
0:01:38.1]} 20. Rxe8 {[%clk 0:01:37.8]} 20... Qxe8 {[%clk 0:01:38.3]} 21. Nfd2
{[%clk 0:01:36.6]} 21... Bg4 {[%clk 0:01:33.8]} 22. Qb1 {[%clk 0:01:18.1]} 22...
Ng6 {[%clk 0:01:27.8]} 23. h3 {[%clk 0:01:16.3]} 23... Bf5 {[%clk 0:01:27.5]}
24. Bxd4 {[%clk 0:00:58.2]} 24... cxd4 {[%clk 0:01:22.5]} 25. Nxd4 {[%clk
0:00:59.1]} 25... Bd7 {[%clk 0:01:15]} 26. Nc6 {[%clk 0:00:59.5]} 26... Rc8
{[%clk 0:01:14.6]} 27. d4 {[%clk 0:00:53.7]} 27... Qe2 {[%clk 0:01:08.9]} 28.
Ne4 {[%clk 0:00:48.5]} 28... Nxe4 {[%clk 0:00:51.7]} 29. Qxe4 {[%clk 0:00:43.1]}
29... Qxe4 {[%clk 0:00:46.2]} 30. Bxe4 {[%clk 0:00:44]} 30... Bxc6 {[%clk
0:00:46.2]} 31. bxc6 {[%clk 0:00:44.7]} 31... Bxd4 {[%clk 0:00:46.5]} 32. Rd7
{[%clk 0:00:31.5]} 32... Be5 {[%clk 0:00:45.7]} 33. Bd5 {[%clk 0:00:32.1]} 33...
Nh8 {[%clk 0:00:40.5]} 34. Be4 {[%clk 0:00:17.8]} 34... Kg7 {[%clk 0:00:34.7]}
35. Rb7 {[%clk 0:00:17]} 35... Rc7 {[%clk 0:00:27.8]} 36. Rxb6 {[%clk
0:00:17.2]} 36... Ng6 {[%clk 0:00:28]} 37. Rb5 {[%clk 0:00:14.1]} 37... Kf6
{[%clk 0:00:26.4]} 38. Rd5 {[%clk 0:00:12.9]} 38... Ne7 {[%clk 0:00:22.7]} 39.
Rd7 {[%clk 0:00:11.6]} 39... Rc8 {[%clk 0:00:20.1]} 40. Kg2 {[%clk 0:00:09.9]}
40... Nxc6 {[%clk 0:00:19.1]} 41. Bd5 {[%clk 0:00:07.7]} 41... Ne7 {[%clk
0:00:18.3]} 42. Kf3 {[%clk 0:00:03.3]} 42... Nxd5 {[%clk 0:00:15]} 43. cxd5
{[%clk 0:00:04.2]} 43... Rc7 {[%clk 0:00:14.9]} 44. Rd8 {[%clk 0:00:04]} 44...
Ke7 {[%clk 0:00:14.8]} 45. Ra8 {[%clk 0:00:02.3]} 45... f5 {[%clk 0:00:14.4]}
46. g4 {[%clk 0:00:02.2]} 46... Rc3+ {[%clk 0:00:14.2]} 47. Kg2 {[%clk
0:00:02.9]} 47... fxg4 {[%clk 0:00:13.8]} 48. hxg4 {[%clk 0:00:03.8]} 48... Rd3
{[%clk 0:00:12.1]} 49. Ra7+ {[%clk 0:00:04.3]} 49... Kf6 {[%clk 0:00:11.4]} 50.
Ra6+ {[%clk 0:00:04.7]} 50... Kg7 {[%clk 0:00:11.5]} 51. Ra5 {[%clk 0:00:04.3]}
51... Bd6 {[%clk 0:00:10.3]} 52. Kf1 {[%clk 0:00:04]} 52... Rd4 {[%clk
0:00:09.8]} 53. f3 {[%clk 0:00:03.1]} 53... Kf6 {[%clk 0:00:10.2]} 54. Ke2
{[%clk 0:00:01.2]} 54... Ke5 {[%clk 0:00:10.7]} 55. Ra8 {[%clk 0:00:01.9]} 55...
Kxd5 {[%clk 0:00:08.3]} 56. Rh8 {[%clk 0:00:02.8]} 56... Bf4 {[%clk 0:00:08.1]}
57. Rxh6 {[%clk 0:00:03.1]} 57... Rd2+ {[%clk 0:00:08.7]} 58. Ke1 {[%clk
0:00:04]} 58... Kd4 {[%clk 0:00:09.1]} 59. Re6 {[%clk 0:00:04]} 59... Rh2 {[%clk
0:00:08.3]} 60. Re4+ {[%clk 0:00:04.3]} 60... Kd3 {[%clk 0:00:08.6]} 61. Re8
{[%clk 0:00:04.7]} 61... Be3 {[%clk 0:00:08.1]} 62. Rd8+ {[%clk 0:00:04.5]}
62... Bd4 {[%clk 0:00:06.8]} 63. Re8 {[%clk 0:00:05.4]} 63... Rh1# {[%clk
0:00:06.3]} 0-1

[Event "Late-Titled-Tuesday-Blitz-May-28-2024"]
[Site "Chess.com"]
[Date "2024.05.28"]
[Round "1"]
[White "Josetricks"]
[Black "Cayse"]
[Result "0-1"]
[WhiteElo "2462"]
[BlackElo "2847"]
[TimeControl "180+1"]
[EndTime "14:08:27 PDT"]
[Termination "Cayse won by resignation"]

1. e4 {[%clk 0:03:00.2]} 1... e5 {[%clk 0:02:59.7]} 2. Nc3 {[%clk 0:02:57.4]}
2... Nf6 {[%clk 0:02:58.5]} 3. Bc4 {[%clk 0:02:54.8]} 3... Nc6 {[%clk
0:02:57.3]} 4. d3 {[%clk 0:02:54.5]} 4... Bc5 {[%clk 0:02:56.5]} 5. f4 {[%clk
0:02:53.5]} 5... d6 {[%clk 0:02:55.9]} 6. Nf3 {[%clk 0:02:53.1]} 6... Bg4 {[%clk
0:02:55]} 7. Na4 {[%clk 0:02:52.6]} 7... Qe7 {[%clk 0:02:37]} 8. Nxc5 {[%clk
0:02:50.5]} 8... dxc5 {[%clk 0:02:37.9]} 9. f5 {[%clk 0:02:36.7]} 9... O-O-O
{[%clk 0:02:36.4]} 10. Bg5 {[%clk 0:01:42.2]} 10... h6 {[%clk 0:02:34.8]} 11.
Bh4 {[%clk 0:01:39.8]} 11... g5 {[%clk 0:02:34.8]} 12. fxg6 {[%clk 0:01:37.1]}
12... fxg6 {[%clk 0:02:34.9]} 13. O-O {[%clk 0:01:37.1]} 13... g5 {[%clk
0:02:31.5]} 14. Bf2 {[%clk 0:01:36.3]} 14... Nxe4 {[%clk 0:02:25.3]} 15. h3
{[%clk 0:01:35.4]} 15... Bh5 {[%clk 0:02:14.9]} 16. Qe1 {[%clk 0:01:31.8]} 16...
Bxf3 {[%clk 0:02:13.2]} 17. dxe4 {[%clk 0:01:29.2]} 17... Bh5 {[%clk 0:02:11.6]}
18. c3 {[%clk 0:01:26.3]} 18... Nb8 {[%clk 0:01:51.5]} 19. Qe3 {[%clk
0:01:17.9]} 19... Nd7 {[%clk 0:01:49.9]} 20. b4 {[%clk 0:01:14.4]} 20... Nb6
{[%clk 0:01:44]} 21. Qxc5 {[%clk 0:01:06.8]} 21... Qxc5 {[%clk 0:01:31.9]} 22.
Be6+ {[%clk 0:01:07]} 22... Kb8 {[%clk 0:01:32.3]} 23. Bxc5 {[%clk 0:01:07.6]}
23... Na4 {[%clk 0:01:32.3]} 24. Be7 {[%clk 0:01:00.3]} 24... Rd2 {[%clk
0:01:26.6]} 25. g4 {[%clk 0:00:49]} 25... Bg6 {[%clk 0:01:22.4]} 26. Bf6 {[%clk
0:00:45.7]} 26... Re8 {[%clk 0:01:19.7]} 27. Bf5 {[%clk 0:00:43.3]} 27... Bxf5
{[%clk 0:01:17.8]} 28. exf5 {[%clk 0:00:44.2]} 28... Nxc3 {[%clk 0:01:17.7]} 29.
Rf3 {[%clk 0:00:31.2]} 29... Ne2+ {[%clk 0:01:14.1]} 30. Kf1 {[%clk 0:00:31.5]}
30... Nd4 {[%clk 0:01:10.3]} 31. Rf2 {[%clk 0:00:27.8]} 31... Rd3 {[%clk
0:01:03.5]} 32. Re1 {[%clk 0:00:27.7]} 32... Nf3 {[%clk 0:00:56.5]} 33. Bg7
{[%clk 0:00:22.6]} 33... Nxe1 {[%clk 0:00:51.5]} 34. Kxe1 {[%clk 0:00:23.5]}
34... Rd7 {[%clk 0:00:26.6]} 35. f6 {[%clk 0:00:19.8]} 35... Rf7 {[%clk
0:00:26.2]} 36. Bxh6 {[%clk 0:00:19.9]} 36... Rh8 {[%clk 0:00:26]} 37. Bg7
{[%clk 0:00:17.5]} 37... Rxh3 {[%clk 0:00:24.3]} 38. Rf5 {[%clk 0:00:17.2]}
38... Kc8 {[%clk 0:00:22.3]} 39. Rxe5 {[%clk 0:00:17.7]} 39... Kd7 {[%clk
0:00:21.8]} 40. Rxg5 {[%clk 0:00:14.8]} 40... Rg3 {[%clk 0:00:20.7]} 41. Kf2
{[%clk 0:00:12.5]} 41... Ra3 {[%clk 0:00:20.5]} 42. Re5 {[%clk 0:00:10.4]} 42...
Rxa2+ {[%clk 0:00:20.6]} 43. Kf3 {[%clk 0:00:10.8]} 43... Ra3+ {[%clk
0:00:20.5]} 44. Kf4 {[%clk 0:00:11.3]} 44... Ra6 {[%clk 0:00:17.5]} 45. g5
{[%clk 0:00:10.7]} 45... Re6 {[%clk 0:00:16.2]} 46. Rxe6 {[%clk 0:00:07.2]}
46... Kxe6 {[%clk 0:00:16.4]} 47. g6 {[%clk 0:00:07.9]} 47... Rxf6+ {[%clk
0:00:16.6]} 48. Kg5 {[%clk 0:00:04.3]} 48... Rf5+ {[%clk 0:00:15.4]} 49. Kh6
{[%clk 0:00:04]} 49... Rf1 {[%clk 0:00:13.5]} 50. Bd4 {[%clk 0:00:04]} 50...
Rh1+ {[%clk 0:00:13.5]} 51. Kg7 {[%clk 0:00:03.4]} 51... b6 {[%clk 0:00:13.8]}
52. Kf8 {[%clk 0:00:03.8]} 52... Rf1+ {[%clk 0:00:13.2]} 53. Ke8 {[%clk
0:00:04.3]} 53... Rf4 {[%clk 0:00:09.9]} 54. g7 {[%clk 0:00:04.1]} 54... Rg4
{[%clk 0:00:10.2]} 55. Kd8 {[%clk 0:00:04.6]} 55... Kd5 {[%clk 0:00:09.1]} 56.
Bf6 {[%clk 0:00:04.2]} 56... c5 {[%clk 0:00:09]} 57. bxc5 {[%clk 0:00:03.8]}
57... Kxc5 {[%clk 0:00:08.9]} 58. Ke7 {[%clk 0:00:03.6]} 58... a5 {[%clk
0:00:09]} 59. Kf7 {[%clk 0:00:04.1]} 59... b5 {[%clk 0:00:08.4]} 60. g8=Q {[%clk
0:00:04.3]} 60... Rxg8 {[%clk 0:00:08.4]} 61. Kxg8 {[%clk 0:00:05.2]} 61... b4
{[%clk 0:00:08.6]} 62. Kf7 {[%clk 0:00:05.9]} 62... Kc4 {[%clk 0:00:08.2]} 63.
Ke6 {[%clk 0:00:06.1]} 63... a4 {[%clk 0:00:08.9]} 64. Ke5 {[%clk 0:00:06.2]}
64... a3 {[%clk 0:00:08.2]} 65. Ke4 {[%clk 0:00:06.8]} 65... b3 {[%clk
0:00:08.5]} 66. Ke3 {[%clk 0:00:05.4]} 66... b2 {[%clk 0:00:08.9]} 67. Kd2
{[%clk 0:00:05.3]} 67... b1=Q {[%clk 0:00:08.7]} 0-1

[Event "Late-Titled-Tuesday-Blitz-May-28-2024"]
[Site "Chess.com"]
[Date "2024.05.28"]
[Round "1"]
[White "jlf287"]
[Black "Hrant_ChessMood"]
[Result "1-0"]
[WhiteElo "2515"]
[BlackElo "2891"]
[TimeControl "180+1"]
[EndTime "14:08:32 PDT"]
[Termination "jlf287 won on time"]

1. d4 {[%clk 0:02:56.8]} 1... Nf6 {[%clk 0:02:53]} 2. c4 {[%clk 0:02:56.1]} 2...
g6 {[%clk 0:02:40.7]} 3. Nc3 {[%clk 0:02:55.3]} 3... Bg7 {[%clk 0:02:40.6]} 4.
e4 {[%clk 0:02:54.3]} 4... d6 {[%clk 0:02:41.2]} 5. Nf3 {[%clk 0:02:52.5]} 5...
O-O {[%clk 0:02:40]} 6. Be2 {[%clk 0:02:52]} 6... Bg4 {[%clk 0:02:40.3]} 7. Be3
{[%clk 0:02:48.5]} 7... e5 {[%clk 0:02:28.2]} 8. dxe5 {[%clk 0:02:34.9]} 8...
Bxf3 {[%clk 0:02:28.1]} 9. Bxf3 {[%clk 0:02:33.7]} 9... dxe5 {[%clk 0:02:27.9]}
10. O-O {[%clk 0:02:28.8]} 10... Qxd1 {[%clk 0:02:18.9]} 11. Rfxd1 {[%clk
0:02:27.5]} 11... c6 {[%clk 0:02:19.8]} 12. Rd2 {[%clk 0:02:16.3]} 12... Re8
{[%clk 0:02:04.4]} 13. Rad1 {[%clk 0:02:15.5]} 13... Bf8 {[%clk 0:01:57.9]} 14.
a3 {[%clk 0:02:07.9]} 14... Be7 {[%clk 0:01:47.7]} 15. g3 {[%clk 0:02:01.1]}
15... a5 {[%clk 0:01:42.9]} 16. Kg2 {[%clk 0:01:59.8]} 16... Na6 {[%clk
0:01:42.9]} 17. Na4 {[%clk 0:01:55.3]} 17... b5 {[%clk 0:01:29.2]} 18. Nb6
{[%clk 0:01:47.8]} 18... Rab8 {[%clk 0:01:27.2]} 19. cxb5 {[%clk 0:01:48.2]}
19... cxb5 {[%clk 0:01:27.4]} 20. Nd5 {[%clk 0:01:47.4]} 20... Nxd5 {[%clk
0:01:16]} 21. exd5 {[%clk 0:01:41.9]} 21... Bd6 {[%clk 0:01:14.1]} 22. Rc2
{[%clk 0:01:40.1]} 22... Red8 {[%clk 0:01:06.8]} 23. Rc6 {[%clk 0:01:37.2]}
23... Nc7 {[%clk 0:01:06.8]} 24. Bb6 {[%clk 0:01:21.4]} 24... Rxb6 {[%clk
0:00:42.2]} 25. Rxb6 {[%clk 0:01:21.2]} 25... b4 {[%clk 0:00:43.1]} 26. a4
{[%clk 0:01:19.7]} 26... Ne8 {[%clk 0:00:39.5]} 27. Ra6 {[%clk 0:01:17.4]} 27...
Bc7 {[%clk 0:00:38]} 28. Rc1 {[%clk 0:01:07.3]} 28... Kg7 {[%clk 0:00:30.7]} 29.
Ra7 {[%clk 0:01:04.9]} 29... Bb6 {[%clk 0:00:28.2]} 30. Rb7 {[%clk 0:01:05.1]}
30... Bd4 {[%clk 0:00:28]} 31. b3 {[%clk 0:01:00.8]} 31... Nd6 {[%clk
0:00:27.3]} 32. Rbc7 {[%clk 0:00:52.6]} 32... e4 {[%clk 0:00:27.8]} 33. Be2
{[%clk 0:00:51.3]} 33... Bc3 {[%clk 0:00:28.3]} 34. Ra7 {[%clk 0:00:46.2]} 34...
Nf5 {[%clk 0:00:22.6]} 35. Rxa5 {[%clk 0:00:32.5]} 35... e3 {[%clk 0:00:23.2]}
36. fxe3 {[%clk 0:00:21.4]} 36... Nxe3+ {[%clk 0:00:22.9]} 37. Kf3 {[%clk
0:00:22.1]} 37... Nf5 {[%clk 0:00:20]} 38. Bc4 {[%clk 0:00:17.8]} 38... Re8
{[%clk 0:00:18.3]} 39. Rd1 {[%clk 0:00:12.9]} 39... Re3+ {[%clk 0:00:17.9]} 40.
Kf2 {[%clk 0:00:13.3]} 40... Re5 {[%clk 0:00:17.9]} 41. Ra7 {[%clk 0:00:12.6]}
41... Nd6 {[%clk 0:00:13.2]} 42. Rd7 {[%clk 0:00:11.8]} 42... Rf5+ {[%clk
0:00:09.9]} 43. Kg2 {[%clk 0:00:11.1]} 43... Rf6 {[%clk 0:00:10.8]} 44. a5
{[%clk 0:00:09.5]} 44... Nxc4 {[%clk 0:00:07.8]} 45. bxc4 {[%clk 0:00:09.8]}
45... Ra6 {[%clk 0:00:08.7]} 46. c5 {[%clk 0:00:09.9]} 46... b3 {[%clk
0:00:08.4]} 47. c6 {[%clk 0:00:10.1]} 47... Rxa5 {[%clk 0:00:03.9]} 48. Rb7
{[%clk 0:00:09]} 48... b2 {[%clk 0:00:03.8]} 49. c7 {[%clk 0:00:07.6]} 49... Ra1
{[%clk 0:00:03.2]} 50. Rd3 {[%clk 0:00:03.8]} 50... Bf6 {[%clk 0:00:02.2]} 51.
c8=Q {[%clk 0:00:03.8]} 51... Ra2 {[%clk 0:00:01.8]} 52. Rxf7+ {[%clk
0:00:03.6]} 52... Kxf7 {[%clk 0:00:01.5]} 53. Qb7+ {[%clk 0:00:04.3]} 53... Kg8
{[%clk 0:00:01.3]} 54. Kh3 {[%clk 0:00:04.5]} 54... Ra1 {[%clk 0:00:01.7]} 55.
Rb3 {[%clk 0:00:04.6]} 55... Rc1 {[%clk 0:00:01.8]} 56. Rxb2 {[%clk 0:00:04.6]}
1-0